bitfinex/quotes_BTCUSD_20230905
["timestamp","ask_amount","ask_price","bid_price","bid_amount"]
[1693924792979,0.25496929,25680.0,25679.0,2.337514]
[1693924793796,0.005,25680.0,25679.0,2.337514]
[1693924793926,0.014,25680.0,25679.0,2.440814]
[1693924796224,0.29345622,25680.0,25679.0,2.440814]
[1693924796461,0.32280184,25680.0,25679.0,2.337514]
[1693924796663,0.29345622,25680.0,25679.0,2.337514]
[1693924797923,0.29345622,25680.0,25679.0,2.440814]
[1693924803233,0.29345622,25680.0,25679.0,2.440814]
[1693924803434,0.014,25680.0,25679.0,2.440814]
[1693924806279,0.10645888,25680.0,25679.0,2.440814]
[1693924808634,0.10645888,25680.0,25679.0,2.7627829]
[1693924808843,0.10645888,25680.0,25679.0,2.440814]
[1693924813799,0.014,25680.0,25679.0,3.21966]
[1693924814654,0.014,25680.0,25679.0,3.60630527]
[1693924814904,0.014,25680.0,25679.0,3.99295054]
[1693924816567,0.014,25680.0,25679.0,3.60630527]
[1693924816837,0.09245888,25684.0,25681.0,0.04]
[1693924817072,0.09245888,25685.0,25683.0,0.1033]
[1693924817228,0.09245888,25685.0,25684.0,0.1033]
[1693924817437,0.09245888,25685.0,25684.0,0.13702781]
[1693924817681,0.23114698,25686.0,25684.0,1.69441581]
[1693924817919,0.23114698,25686.0,25685.0,0.1033]
[1693924818118,0.23114698,25686.0,25685.0,2.439292]
[1693924818766,0.09245888,25686.0,25685.0,2.439292]
[1693924818943,0.09345888,25686.0,25685.0,2.439292]
[1693924819313,0.09345888,25686.0,25685.0,2.82593727]
[1693924819766,0.09345888,25686.0,25685.0,3.12593727]
[1693924819767,0.001,25686.0,25685.0,3.12593727]
[1693924820172,0.008,25686.0,25685.0,3.62402254]
[1693924820428,0.008,25686.0,25685.0,3.68486254]
[1693924820630,0.008,25686.0,25685.0,3.68402254]
[1693924820823,0.007,25686.0,25685.0,3.68486254]
[1693924821033,0.007,25686.0,25685.0,3.68498254]
[1693924821240,0.013,25686.0,25685.0,3.68394254]
[1693924821392,0.013,25686.0,25685.0,4.25113854]
[1693924821596,0.09245888,25690.0,25686.0,0.4689]
[1693924821777,1.22034698,25691.0,25689.0,0.1033]
[1693924821982,0.30371483,25691.0,25690.0,1.660326]
[1693924822188,0.09245888,25691.0,25690.0,3.217352]
[1693924822382,0.47540502,25691.0,25690.0,3.217352]
[1693924822764,0.09245888,25691.0,25690.0,3.217352]
[1693924822975,0.09245888,25691.0,25690.0,3.38614083]
[1693924823179,0.31055523,25691.0,25690.0,3.38614083]
[1693924823599,0.33455523,25691.0,25690.0,3.38814083]
[1693924824128,0.24209635,25691.0,25690.0,3.38814083]
[1693924824444,0.33455523,25691.0,25690.0,3.38814083]
[1693924824642,0.24209635,25691.0,25690.0,3.38814083]
[1693924824792,0.24209635,25691.0,25690.0,3.39014083]
[1693924824793,0.26609635,25691.0,25690.0,3.39014083]
[1693924825356,0.048,25691.0,25690.0,3.39014083]
[1693924825928,0.048,25691.0,25690.0,3.221352]
[1693924826571,0.048,25691.0,25690.0,3.675312]
[1693924826745,0.048,25691.0,25690.0,3.716332]
[1693924827012,0.048,25691.0,25690.0,3.706012]
[1693924827256,0.048,25691.0,25690.0,4.09115727]
[1693924827411,0.048,25691.0,25690.0,4.48494254]
[1693924827604,0.048,25691.0,25690.0,4.89834254]
[1693924827811,0.048,25691.0,25690.0,4.89342254]
[1693924828054,0.0196,25692.0,25691.0,0.4689]
[1693924828229,0.0196,25692.0,25691.0,3.71759127]
[1693924828430,0.0196,25692.0,25691.0,3.92010791]
[1693924828805,0.0196,25692.0,25691.0,4.01784791]
[1693924829006,0.0196,25692.0,25691.0,4.00764791]
[1693924829140,0.0196,25692.0,25691.0,4.00734791]
[1693924829341,0.0196,25692.0,25691.0,3.99948791]
[1693924829572,0.0206,25692.0,25691.0,4.01928791]
[1693924829746,0.0206,25692.0,25691.0,4.02060791]
[1693924829969,0.0206,25692.0,25691.0,4.02726791]
[1693924830168,0.0206,25692.0,25691.0,4.02822791]
[1693924830371,0.0196,25696.0,25691.0,4.03422791]
[1693924830549,0.0196,25696.0,25695.0,0.1033]
[1693924830751,0.0196,25696.0,25695.0,3.216744]
[1693924831851,0.0196,25696.0,25695.0,3.372478]
[1693924832056,0.0196,25696.0,25695.0,3.3678714]
[1693924832446,0.0467248,25696.0,25695.0,3.3678714]
[1693924832680,0.0467248,25696.0,25695.0,3.75651667]
[1693924832681,0.0236,25696.0,25695.0,3.75651667]
[1693924832885,0.0206,25696.0,25695.0,3.75451667]
[1693924833091,0.05113733,25696.0,25695.0,3.75451667]
[1693924833479,0.0246,25696.0,25695.0,4.14116194]
[1693924834089,0.05113733,25696.0,25695.0,4.14116194]
[1693924834497,0.05113733,25696.0,25695.0,4.20812194]
[1693924834703,0.05113733,25696.0,25695.0,5.00416194]
[1693924834905,0.05113733,25696.0,25695.0,4.91006194]
[1693924835109,0.0246,25696.0,25695.0,4.91006194]
[1693924835309,0.0246,25696.0,25695.0,5.00182194]
[1693924835514,0.0246,25696.0,25695.0,5.00662194]
[1693924835667,0.0236,25696.0,25695.0,4.99978194]
[1693924835872,0.0236,25696.0,25695.0,4.97720194]
[1693924836225,0.0246,25696.0,25695.0,4.91806194]
[1693924837075,0.0236,25696.0,25695.0,4.91006194]
[1693924837247,0.0236,25696.0,25695.0,4.50116194]
[1693924837611,0.0236,25696.0,25695.0,4.11451667]
[1693924838267,0.0236,25696.0,25695.0,4.13951667]
[1693924838268,0.0256,25696.0,25695.0,4.13951667]
[1693924838842,0.0256,25696.0,25695.0,4.14351667]
[1693924839155,0.0216,25696.0,25695.0,4.13951667]
[1693924839358,0.0226,25696.0,25695.0,4.16051667]
[1693924840826,0.04917034,25696.0,25695.0,4.16051667]
[1693924841248,0.0226,25696.0,25695.0,4.16051667]
[1693924843199,0.0226,25696.0,25695.0,3.7738714]
[1693924845386,0.04727245,25696.0,25695.0,3.7738714]
[1693924846689,0.0226,25696.0,25695.0,3.7738714]
[1693924851332,0.0226,25696.0,25695.0,4.65353667]
[1693924851582,0.0226,25696.0,25695.0,4.66121667]
[1693924851791,0.0226,25696.0,25695.0,5.04696194]
[1693924851993,0.0226,25696.0,25695.0,5.04354194]
[1693924852202,0.0226,25696.0,25695.0,5.03850194]
[1693924852404,0.0226,25696.0,25695.0,5.03754194]
[1693924852606,0.0226,25696.0,25695.0,5.02968194]
[1693924852837,0.0226,25696.0,25695.0,4.95606194]
[1693924853014,0.0226,25696.0,25695.0,4.16051667]
[1693924853463,0.05053919,25696.0,25695.0,4.16051667]
[1693924853679,0.05053919,25696.0,25695.0,1.04707267]
[1693924853889,0.05053919,25696.0,25695.0,3.7738714]
[1693924854503,0.0226,25696.0,25695.0,3.7738714]
[1693924854734,0.0226,25696.0,25695.0,4.66163667]
[1693924854941,0.0226,25696.0,25695.0,4.68187667]
[1693924855156,0.0196,25700.0,25695.0,4.68187667]
[1693924855157,0.0196,25700.0,25697.0,0.4089]
[1693924855369,0.0196,25700.0,25699.0,0.1033]
[1693924855570,0.0196,25700.0,25699.0,1.65978]
[1693924855984,0.0196,25700.0,25699.0,1.72752]
[1693924856191,0.0196,25700.0,25699.0,2.50774]
[1693924856409,0.0196,25700.0,25699.0,2.5069]
[1693924856611,0.0196,25700.0,25699.0,2.89312527]
[1693924856817,0.0366,25700.0,25699.0,2.82666527]
[1693924857241,0.0366,25700.0,25699.0,2.89332527]
[1693924857362,0.0366,25700.0,25699.0,2.89992527]
[1693924857572,0.0196,25700.0,25699.0,2.89744527]
[1693924857785,0.0196,25700.0,25699.0,2.89210527]
[1693924858005,0.0196,25700.0,25699.0,2.89180527]
[1693924858207,0.0196,25700.0,25699.0,2.89144527]
[1693924858414,0.0196,25700.0,25699.0,2.82466527]
[1693924858814,0.0196,25700.0,25699.0,2.89144527]
[1693924859086,0.0196,25700.0,25699.0,3.28835054]
[1693924859297,0.05361578,25700.0,25699.0,3.29157054]
[1693924859501,0.05361578,25700.0,25699.0,3.28931054]
[1693924859705,0.05361578,25700.0,25699.0,3.29895054]
[1693924859953,0.05361578,25700.0,25699.0,3.23031054]
[1693924860151,0.05361578,25700.0,25699.0,3.30045054]
[1693924860507,0.05361578,25700.0,25699.0,4.25765054]
[1693924860508,0.03401578,25700.0,25699.0,4.25765054]
[1693924860715,0.0197,25703.0,25701.0,0.4689]
[1693924860920,0.0197,25703.0,25702.0,4.72758027]
[1693924861341,0.0197,25703.0,25702.0,4.340935]
[1693924861601,0.30750845,25703.0,25702.0,4.340935]
[1693924861841,0.28644372,25703.0,25702.0,3.215896]
[1693924862901,0.28644372,25703.0,25702.0,3.228896]
[1693924863319,0.28644372,25703.0,25702.0,3.238896]
[1693924864515,0.28644372,25703.0,25702.0,2.460747]
[1693924864748,0.3144323,25703.0,25702.0,1.579298]
[1693924865168,0.40689118,25703.0,25702.0,1.579298]
[1693924865388,0.79353645,25703.0,25702.0,0.023]
[1693924865596,0.79353645,25703.0,25702.0,0.801149]
[1693924866022,0.79353645,25703.0,25702.0,0.023]
[1693924866628,0.83976567,25703.0,25702.0,0.023]
[1693924867241,1.32315237,25703.0,25702.0,0.023]
[1693924867660,3.79248185,25703.0,25702.0,0.023]
[1693924867867,3.88247465,25703.0,25702.0,0.023]
[1693924868071,3.91331141,25703.0,25702.0,0.023]
[1693924868277,3.91331141,25703.0,25702.0,0.01]
[1693924868485,3.91531141,25703.0,25702.0,0.01]
[1693924868690,0.1,25702.0,25697.0,1.36200023]
[1693924868901,0.231825,25700.0,25697.0,1.36200023]
[1693924869103,0.38664527,25699.0,25697.0,1.36200023]
[1693924869312,0.47937527,25699.0,25697.0,1.36200023]
[1693924869519,0.24832125,25698.0,25697.0,1.36200023]
[1693924870132,0.24832125,25698.0,25697.0,1.556566]
[1693924871167,0.24832125,25698.0,25696.0,1.556634]
[1693924871377,0.24832125,25698.0,25697.0,0.7783]
[1693924871765,0.34105125,25698.0,25697.0,0.7783]
[1693924872019,0.34105125,25698.0,25696.0,1.556628]
[1693924872223,0.231825,25698.0,25697.0,0.005]
[1693924872639,0.231825,25698.0,25697.0,0.006]
[1693924872846,0.231825,25698.0,25697.0,0.001]
[1693924873057,0.231825,25698.0,25694.0,0.778374]
[1693924873058,2.37104027,25698.0,25694.0,0.778374]
[1693924873268,0.09280256,25696.0,25695.0,0.155734]
[1693924873478,0.2320064,25696.0,25695.0,0.155734]
[1693924873681,0.13920384,25696.0,25695.0,0.155734]
[1693924873883,0.52584911,25696.0,25695.0,0.155734]
[1693924874302,1.50410738,25696.0,25695.0,0.155734]
[1693924874505,1.50410738,25696.0,25695.0,0.165734]
[1693924874506,1.6897125,25696.0,25695.0,0.165734]
[1693924874713,0.77217766,25696.0,25695.0,0.165734]
[1693924874920,0.57225039,25696.0,25695.0,0.165734]
[1693924875127,0.83410891,25696.0,25695.0,0.011]
[1693924875737,0.97299735,25696.0,25695.0,0.001]
[1693924876174,0.97299735,25696.0,25695.0,0.003]
[1693924876377,0.97299735,25696.0,25695.0,0.158765]
[1693924876794,1.20482235,25696.0,25695.0,0.158765]
[1693924877412,0.97299735,25696.0,25695.0,0.158765]
[1693924877800,1.20482235,25696.0,25695.0,0.158765]
[1693924878028,0.97299735,25696.0,25695.0,0.158765]
[1693924878851,0.97299735,25696.0,25694.0,1.52091683]
[1693924878852,0.21840845,25695.0,25694.0,1.52091683]
[1693924879061,0.35761703,25695.0,25694.0,1.52091683]
[1693924880098,0.38832107,25695.0,25694.0,1.52091683]
[1693924880714,0.39032107,25695.0,25694.0,1.52091683]
[1693924881117,0.39332107,25695.0,25694.0,1.52091683]
[1693924890134,2.66312086,25695.0,25693.0,0.155765]
[1693924890337,0.48994527,25694.0,25693.0,0.155765]
[1693924890496,0.92718631,25694.0,25693.0,0.155765]
[1693924890700,0.88078437,25694.0,25692.0,1.556888]
[1693924890924,0.0927671,25693.0,25692.0,1.556888]
[1693924891124,0.0927671,25693.0,25692.0,0.778437]
[1693924891377,0.30430515,25693.0,25692.0,0.778437]
[1693924891582,0.30430515,25693.0,25691.0,1.556935]
[1693924892208,1.46937342,25693.0,25691.0,1.71271]
[1693924892409,1.46937342,25693.0,25692.0,0.002]
[1693924892410,1.47737342,25693.0,25692.0,0.002]
[1693924892570,2.35909642,25693.0,25692.0,0.002]
[1693924892996,2.65847304,25693.0,25692.0,0.002]
[1693924893394,2.35909642,25693.0,25692.0,0.002]
[1693924893718,3.14451942,25693.0,25692.0,0.003]
[1693924893939,3.13651942,25693.0,25692.0,0.001]
[1693924894146,3.37645432,25693.0,25692.0,0.001]
[1693924894553,3.36845432,25693.0,25692.0,0.001]
[1693924894740,3.37645432,25693.0,25692.0,0.003]
[1693924895101,3.41120503,25693.0,25692.0,0.003]
[1693924895501,3.39620503,25693.0,25689.0,1.712843]
[1693924895877,0.94189739,25692.0,25689.0,1.712843]
[1693924895980,0.778482,25691.0,25689.0,1.712843]
[1693924896191,1.16512727,25691.0,25689.0,1.712843]
[1693924896392,0.38664527,25691.0,25689.0,0.934313]
[1693924896641,0.38664527,25690.0,25689.0,0.15579]
[1693924897051,0.38664527,25690.0,25686.0,1.557231]
[1693924897052,2.93372232,25690.0,25686.0,1.557231]
[1693924897231,3.06838043,25690.0,25686.0,1.557231]
[1693924897439,2.52046743,25690.0,25686.0,1.557231]
[1693924897568,2.38580932,25690.0,25686.0,1.557231]
[1693924897771,2.38580932,25690.0,25689.0,0.001]
[1693924898182,2.63343813,25690.0,25689.0,0.001]
[1693924898383,2.64643813,25690.0,25689.0,0.001]
[1693924898593,2.64643813,25690.0,25687.0,0.778598]
[1693924898783,2.63343813,25690.0,25687.0,0.778598]
[1693924898992,0.35752321,25689.0,25687.0,0.778598]
[1693924899197,0.38664527,25688.0,25687.0,0.778598]
[1693924900404,0.38664527,25688.0,25685.0,0.778656]
[1693924900405,1.26851827,25688.0,25685.0,0.778656]
[1693924900609,2.04709127,25688.0,25685.0,0.778656]
[1693924900791,2.04709127,25688.0,25687.0,0.002]
[1693924901035,0.27567468,25687.0,25685.0,0.778656]
[1693924901237,0.38664527,25686.0,25685.0,0.778656]
[1693924901848,0.38664527,25686.0,25685.0,0.791656]
[1693924902180,0.38664527,25686.0,25685.0,0.778656]
[1693924903020,0.38764527,25686.0,25685.0,0.795656]
[1693924903884,0.64599701,25686.0,25685.0,0.808656]
[1693924905697,0.64599701,25686.0,25685.0,1.58732]
[1693924906758,0.002,25686.0,25685.0,2.6181661]
[1693924906956,0.002,25686.0,25685.0,2.469284]
[1693924910701,0.002,25686.0,25685.0,2.541404]
[1693924910903,0.002,25686.0,25685.0,2.862044]
[1693924911053,0.002,25686.0,25685.0,2.853464]
[1693924911255,0.002,25686.0,25685.0,2.854784]
[1693924911598,0.002,25686.0,25685.0,2.852804]
[1693924911804,0.002,25686.0,25685.0,3.23902927]
[1693924911986,0.002,25686.0,25685.0,3.24016927]
[1693924912198,0.002,25686.0,25685.0,3.22690927]
[1693924912393,0.002,25686.0,25685.0,3.22750927]
[1693924912593,0.002,25686.0,25685.0,3.22666927]
[1693924912793,0.002,25686.0,25685.0,3.24364927]
[1693924912991,0.002,25686.0,25685.0,3.24988927]
[1693924913194,0.002,25686.0,25685.0,3.24736927]
[1693924913422,0.002,25686.0,25685.0,3.24934927]
[1693924913599,0.002,25686.0,25685.0,3.24802927]
[1693924913800,0.002,25686.0,25685.0,3.24844927]
[1693924914003,0.002,25686.0,25685.0,2.861624]
[1693924914189,0.002,25686.0,25685.0,2.859824]
[1693924914389,0.9892,25692.0,25686.0,0.4689]
[1693924914634,0.38201769,25695.0,25691.0,0.1033]
[1693924914997,0.38201769,25695.0,25694.0,0.1033]
[1693924915186,0.38201769,25695.0,25694.0,2.61892692]
[1693924915388,0.38201769,25695.0,25694.0,3.24265981]
[1693924916390,0.09271627,25695.0,25694.0,3.24265981]
[1693924917092,0.2918663,25696.0,25694.0,3.24265981]
[1693924917567,0.09271627,25695.0,25694.0,3.24265981]
[1693924917775,0.10171627,25695.0,25694.0,3.24265981]
[1693924917982,0.11071627,25695.0,25694.0,3.218864]
[1693924918187,0.11071627,25695.0,25694.0,3.216864]
[1693924918188,0.09271627,25695.0,25694.0,3.216864]
[1693924918425,0.45682786,25696.0,25694.0,3.216864]
[1693924918627,0.53482786,25696.0,25694.0,3.220864]
[1693924918829,0.52582786,25696.0,25694.0,3.6967064]
[1693924918989,0.009,25695.0,25694.0,3.6967064]
[1693924919782,0.009,25695.0,25694.0,3.37462]
[1693924920325,0.009,25695.0,25694.0,2.62771674]
[1693924920531,0.5215209,25695.0,25694.0,0.002]
[1693924920732,2.3721719,25695.0,25694.0,0.004]
[1693924920943,2.74681192,25695.0,25694.0,0.002]
[1693924921144,2.93236389,25695.0,25694.0,0.002]
[1693924921322,2.94136389,25695.0,25694.0,0.004]
[1693924921523,1.0066229,25695.0,25694.0,0.004]
[1693924921768,0.61997763,25695.0,25694.0,1.560782]
[1693924922193,0.43442566,25695.0,25694.0,1.560782]
[1693924922832,0.43442566,25695.0,25694.0,0.782391]
[1693924923025,0.61997763,25695.0,25694.0,0.782391]
[1693924923249,0.4808276,25695.0,25694.0,0.782391]
[1693924923502,0.20355197,25695.0,25694.0,0.69601392]
[1693924923838,0.35349944,25695.0,25694.0,0.69601392]
[1693924924045,0.60907856,25695.0,25694.0,0.69601392]
[1693924924246,0.59833098,25695.0,25694.0,0.69601392]
[1693924924549,0.45913109,25695.0,25693.0,1.556806]
[1693924924749,0.0927814,25694.0,25693.0,1.556806]
[1693924924955,0.23195127,25694.0,25693.0,1.556806]
[1693924925286,0.26714459,25694.0,25693.0,1.556806]
[1693924925693,0.26714459,25694.0,25693.0,1.558806]
[1693924925894,0.27814459,25694.0,25693.0,1.560806]
[1693924926266,0.27814459,25694.0,25693.0,0.004]
[1693924926469,0.79833002,25694.0,25693.0,0.004]
[1693924926670,1.87563191,25694.0,25693.0,0.004]
[1693924926899,1.87563191,25694.0,25693.0,0.002]
[1693924927687,3.43363724,25694.0,25693.0,0.002]
[1693924927918,3.61991027,25694.0,25693.0,0.002]
[1693924928123,3.61991027,25694.0,25693.0,0.004]
[1693924928124,3.39908527,25694.0,25693.0,0.004]
[1693924929070,3.38808527,25694.0,25693.0,0.002]
[1693924929276,3.38808527,25694.0,25688.0,0.58586958]
[1693924929480,0.09277507,25691.0,25688.0,0.58586958]
[1693924929684,0.38664527,25690.0,25688.0,0.58586958]
[1693924930101,1.16516027,25690.0,25687.0,1.71297]
[1693924930305,2.04697527,25690.0,25687.0,0.934379]
[1693924930507,2.13975034,25690.0,25687.0,0.934379]
[1693924930710,2.3660719,25690.0,25687.0,0.934379]
[1693924931134,2.3660719,25690.0,25687.0,1.712982]
[1693924931329,1.5875569,25690.0,25687.0,1.712982]
[1693924931969,0.25941974,25689.0,25687.0,1.712982]
[1693924932316,0.25941974,25689.0,25687.0,1.713982]
[1693924932506,0.60387208,25689.0,25687.0,1.736982]
[1693924932717,0.38664527,25688.0,25685.0,1.557281]
[1693924932918,1.16521827,25688.0,25685.0,1.557281]
[1693924933122,1.16521827,25688.0,25687.0,0.001]
[1693924933505,1.26851827,25688.0,25687.0,0.002]
[1693924933716,1.5876149,25688.0,25687.0,0.001]
[1693924933914,1.49483983,25688.0,25687.0,0.001]
[1693924934120,1.49583983,25688.0,25687.0,0.001]
[1693924934329,1.36229334,25688.0,25685.0,1.48587365]
[1693924934742,0.2861673,25687.0,25685.0,1.48587365]
[1693924934995,0.67281257,25687.0,25685.0,1.48587365]
[1693924935403,0.67281257,25687.0,25685.0,1.50187365]
[1693924935830,0.67281257,25687.0,25685.0,1.47187365]
[1693924936275,0.67481257,25687.0,25685.0,1.48787365]
[1693924937308,0.67581257,25687.0,25685.0,1.50187365]
[1693924937737,0.27577638,25686.0,25685.0,1.50187365]
[1693924938844,0.27577638,25686.0,25685.0,1.47187365]
[1693924939045,0.27877638,25686.0,25685.0,1.50187365]
[1693924940219,0.31231137,25686.0,25685.0,1.50187365]
[1693924942686,0.03653499,25686.0,25685.0,2.28053765]
[1693924942864,0.03653499,25686.0,25685.0,2.38383765]
[1693924943099,0.03653499,25686.0,25685.0,2.71567292]
[1693924946026,0.03653499,25686.0,25685.0,2.38383765]
[1693924946233,0.31368595,25686.0,25685.0,1.50187365]
[1693924946453,0.31368595,25686.0,25685.0,0.03]
[1693924946454,0.52648026,25686.0,25685.0,0.03]
[1693924946658,1.01431844,25686.0,25685.0,0.03]
[1693924948479,0.79667191,25686.0,25685.0,0.03]
[1693924949747,2.35393991,25686.0,25685.0,0.03]
[1693924950318,2.95515733,25686.0,25685.0,0.03]
[1693924950933,2.95315733,25686.0,25685.0,0.014]
[1693924951136,2.95315733,25686.0,25685.0,0.019]
[1693924951137,2.95415733,25686.0,25685.0,0.019]
[1693924951344,2.95315733,25686.0,25685.0,0.005]
[1693924951559,2.95215733,25686.0,25681.0,1.713388]
[1693924951765,2.95215733,25686.0,25680.0,0.778791]
[1693924951766,0.1033,25682.0,25680.0,0.778791]
[1693924951974,0.62460338,25682.0,25680.0,0.778791]
[1693924952188,0.48994527,25682.0,25680.0,0.778791]
[1693924952404,1.26870327,25682.0,25678.0,1.557713]
[1693924952633,1.26870327,25682.0,25679.0,0.06942551]
[1693924952634,0.18412863,25681.0,25679.0,0.06942551]
[1693924952848,1.3495619,25681.0,25679.0,0.06942551]
[1693924953056,1.57505336,25681.0,25678.0,1.557713]
[1693924953255,1.57505336,25681.0,25680.0,0.001]
[1693924953506,1.3495619,25681.0,25680.0,0.001]
[1693924953936,0.5707739,25681.0,25680.0,0.001]
[1693924954121,2.1283439,25681.0,25680.0,0.015]
[1693924954497,2.9071289,25681.0,25680.0,0.001]
[1693924954968,2.95431886,25681.0,25680.0,0.002]
[1693924955355,0.2478081,25680.0,25677.0,1.557783]
[1693924955554,1.02109864,25680.0,25679.0,0.001]
[1693924955788,1.02109864,25680.0,25677.0,1.557783]
[1693924955789,1.02109864,25680.0,25678.0,0.778875]
[1693924957620,1.03509864,25680.0,25678.0,0.778875]
[1693924958252,1.05909864,25680.0,25679.0,0.002]
[1693924958452,1.02109864,25680.0,25678.0,1.55775]
[1693924958675,1.04509864,25680.0,25678.0,1.55975]
[1693924958908,0.18412863,25679.0,25678.0,1.56175]
[1693924959126,0.18412863,25679.0,25678.0,1.55975]
[1693924959991,0.18412863,25679.0,25678.0,1.56175]
[1693924960231,0.65845337,25680.0,25678.0,1.55975]
[1693924960884,0.014,25679.0,25678.0,1.56175]
[1693924961271,0.63445337,25680.0,25678.0,1.55775]
[1693924961417,0.31713204,25679.0,25678.0,1.56175]
[1693924962014,0.31713204,25679.0,25678.0,1.55975]
[1693924962308,0.29613204,25679.0,25678.0,1.55775]
[1693924962458,0.29613204,25679.0,25678.0,1.55975]
[1693924962849,0.29613204,25679.0,25678.0,1.55775]
[1693924963084,0.31713204,25679.0,25678.0,1.55975]
[1693924963643,0.33113204,25679.0,25678.0,1.56175]
[1693924970038,0.3640302,25679.0,25678.0,1.56175]
[1693924970250,0.06789816,25679.0,25678.0,1.8892915]
[1693924970447,0.06789816,25679.0,25678.0,2.7714675]
[1693924970649,0.06789816,25679.0,25678.0,2.443926]
[1693924971044,0.035,25679.0,25678.0,2.443926]
[1693924971770,0.06786026,25679.0,25678.0,2.443926]
[1693924974009,0.06786026,25679.0,25678.0,2.517486]
[1693924974228,0.06786026,25679.0,25678.0,2.92243127]
[1693924974434,0.06786026,25679.0,25678.0,2.92483127]
[1693924974642,0.035,25679.0,25678.0,3.80413654]
[1693924974847,0.035,25679.0,25678.0,3.87066763]
[1693924975053,0.035,25679.0,25678.0,3.86902763]
[1693924975054,0.014,25679.0,25678.0,3.86902763]
[1693924975264,0.21740718,25687.0,25679.0,0.16]
[1693924975479,0.60405245,25687.0,25685.0,0.1033]
[1693924975687,0.60405245,25687.0,25686.0,1.71192611]
[1693924976097,0.60405245,25687.0,25686.0,1.557268]
[1693924976724,0.38664527,25687.0,25686.0,2.335902]
[1693924977139,0.09277507,25689.0,25686.0,2.439202]
[1693924977352,0.09277507,25689.0,25688.0,0.1033]
[1693924977555,0.09277507,25689.0,25688.0,2.391519]
[1693924977757,0.51895713,25690.0,25688.0,2.391519]
[1693924977991,0.9056024,25690.0,25689.0,0.1033]
[1693924978194,0.26219963,25689.0,25688.0,1.46574903]
[1693924978401,0.27519963,25689.0,25688.0,1.56904903]
[1693924978605,0.26219963,25689.0,25688.0,1.557146]
[1693924979018,0.3549747,25689.0,25688.0,1.561146]
[1693924979252,0.3549747,25689.0,25688.0,1.559146]
[1693924979455,0.3549747,25689.0,25688.0,1.36446419]
[1693924979661,0.013,25689.0,25688.0,1.561146]
[1693924979873,0.013,25689.0,25688.0,2.339719]
[1693924980288,0.013,25689.0,25688.0,2.337719]
[1693924980935,0.037,25689.0,25688.0,2.339719]
[1693924981142,0.037,25689.0,25688.0,2.14503719]
[1693924981749,0.037,25689.0,25688.0,2.24833719]
[1693924984831,0.25982846,25689.0,25688.0,0.58789119]
[1693924985033,0.3809805,25689.0,25688.0,0.58789119]
[1693924987427,0.53755335,25689.0,25688.0,0.58789119]
[1693924988340,0.28820543,25689.0,25688.0,0.58789119]
[1693924992794,0.06537697,25689.0,25688.0,0.58789119]
[1693924993031,0.06537697,25689.0,25688.0,1.36646419]
[1693924996501,0.32074013,25689.0,25688.0,1.36646419]
[1693924999533,2.10188331,25689.0,25688.0,0.002]
[1693924999734,3.37125831,25689.0,25688.0,0.002]
[1693925000134,3.11447239,25689.0,25688.0,0.002]
[1693925001171,3.21777239,25689.0,25688.0,0.002]
[1693925001367,3.35693499,25689.0,25688.0,0.002]
[1693925002465,3.62232911,25689.0,25688.0,0.002]
[1693925002866,3.52955404,25689.0,25688.0,0.002]
[1693925004541,3.26415992,25689.0,25688.0,0.002]
[1693925005523,3.550103,25689.0,25688.0,0.002]
[1693925005737,3.26415992,25689.0,25688.0,0.002]
[1693925006522,3.44971006,25689.0,25688.0,0.002]
[1693925006852,3.31054746,25689.0,25688.0,0.002]
[1693925007062,3.74383208,25689.0,25688.0,0.002]
[1693925007480,3.32423586,25689.0,25688.0,0.002]
[1693925008267,0.97808991,25689.0,25688.0,0.002]
[1693925009696,0.97809727,25689.0,25688.0,0.002]
[1693925009929,0.88530686,25689.0,25688.0,0.002]
[1693925011195,1.66384986,25689.0,25688.0,0.002]
[1693925012496,1.8494,25689.0,25688.0,0.002]
[1693925012709,2.05049513,25689.0,25688.0,0.002]
[1693925012908,2.23604527,25689.0,25688.0,0.002]
[1693925013842,1.8494,25689.0,25688.0,0.002]
[1693925014014,1.71024093,25689.0,25688.0,0.002]
[1693925014901,1.8639129,25689.0,25688.0,0.002]
[1693925015423,3.12687335,25689.0,25688.0,0.002]
[1693925015634,3.35881103,25689.0,25688.0,0.002]
[1693925015849,3.55990616,25689.0,25688.0,0.002]
[1693925018717,3.83744364,25689.0,25688.0,0.002]
[1693925018919,3.60550596,25689.0,25688.0,0.002]
[1693925019348,3.43126848,25689.0,25688.0,0.002]
[1693925019553,3.43063978,25689.0,25688.0,0.002]
[1693925019938,3.64442888,25689.0,25688.0,0.002]
[1693925020563,3.42563978,25689.0,25688.0,0.002]
[1693925021017,6.02503285,25689.0,25688.0,0.002]
[1693925021220,6.99526956,25689.0,25688.0,0.002]
[1693925021423,7.69664956,25689.0,25688.0,0.002]
[1693925021626,7.18788956,25689.0,25688.0,0.002]
[1693925021826,7.60776956,25689.0,25688.0,0.002]
[1693925022246,7.60776956,25689.0,25688.0,0.004]
[1693925022247,7.31811474,25689.0,25688.0,0.004]
[1693925022462,5.38035187,25689.0,25688.0,0.004]
[1693925022668,2.85764336,25689.0,25688.0,0.002]
[1693925022873,3.16039612,25689.0,25688.0,0.002]
[1693925023098,3.93893912,25689.0,25688.0,0.002]
[1693925023346,3.83562967,25689.0,25688.0,0.002]
[1693925023583,3.81162967,25689.0,25688.0,0.002]
[1693925023790,3.83562967,25689.0,25688.0,0.002]
[1693925023989,0.04,25688.0,25684.0,1.557362]
[1693925024203,0.09291569,25685.0,25684.0,1.557362]
[1693925024632,0.12084911,25685.0,25684.0,1.557362]
[1693925025177,0.12084911,25685.0,25684.0,1.559362]
[1693925026397,1.81143851,25685.0,25684.0,0.002]
[1693925026615,2.4776394,25685.0,25681.0,2.546726]
[1693925026791,0.09291871,25683.0,25681.0,2.546733]
[1693925027017,0.09291871,25683.0,25681.0,0.9892]
[1693925027018,0.47956398,25683.0,25681.0,0.9892]
[1693925027222,0.7808373,25683.0,25681.0,0.9892]
[1693925027431,0.38664527,25682.0,25681.0,1.767985]